bitfinex/quotes_ETHUSD_20241119
["timestamp","ask_amount","ask_price","bid_price","bid_amount"]
[1732041248012,3.19369,3131.2,3130.7,0.6284]
[1732041248579,3.19331,3131.6,3130.7,0.6284]
[1732041248823,3.19372,3131.2,3130.7,0.6284]
[1732041249247,3.1941,3130.8,3130.3,0.6836]
[1732041249528,3.1939,3131.0,3130.3,0.6836]
[1732041249740,3.19372,3131.2,3130.3,0.6836]
[1732041250137,3.19378,3131.1,3130.3,0.6836]
[1732041250673,3.19388,3131.0,3130.3,0.6836]
[1732041251112,3.19429,3130.6,3130.3,0.6836]
[1732041251954,3.19454,3130.4,3129.7,0.318]
[1732041252327,3.19463,3130.3,3129.7,0.318]
[1732041252526,3.19469,3130.2,3129.7,0.318]
[1732041252905,3.1941,3130.8,3129.7,0.318]
[1732041252906,3.19432,3130.6,3129.7,5.318]
[1732041253107,3.19447,3130.5,3129.7,5.318]
[1732041253513,3.19432,3130.6,3129.7,5.318]
[1732041254113,3.19457,3130.4,3129.8,0.6836]
[1732041254313,3.19479,3130.1,3129.8,0.6836]
[1732041254633,0.319457,3130.4,3129.4,0.6836]
[1732041254634,3.1946,3130.3,3129.4,0.6836]
[1732041254840,3.19441,3130.5,3129.4,0.6836]
[1732041255048,4.22512,3130.6,3129.4,0.6836]
[1732041255049,3.1945,3130.4,3129.4,0.6836]
[1732041255231,3.19459,3130.3,3129.4,0.6836]
[1732041255641,3.19358,3131.3,3130.3,5.0]
[1732041255857,3.19344,3131.5,3130.4,0.70347418]
[1732041256181,3.19362,3131.3,3130.4,0.6836]
[1732041256367,3.19382,3131.1,3130.4,0.6836]
[1732041257023,3.19387,3131.0,3130.4,0.6836]
[1732041257224,3.19371,3131.2,3130.4,0.6836]
[1732041257662,3.19378,3131.1,3130.4,0.6836]
[1732041257970,3.19372,3131.2,3130.4,0.6836]
[1732041258157,3.19353,3131.4,3130.5,0.06386499]
[1732041258347,3.19329,3131.6,3130.5,0.06386499]
[1732041258677,3.1934,3131.5,3130.6,5.0]
[1732041259674,3.35404703,3131.6,3130.6,5.0]
[1732041259876,0.37729171,3131.5,3130.6,5.0]
[1732041260086,6.38663,3131.6,3130.6,5.0]
[1732041260304,3.19329,3131.6,3130.6,5.0]
[1732041260587,3.19342,3131.5,3130.6,5.0]
[1732041260941,3.19321,3131.7,3130.7,1.2336]
[1732041261149,3.19289,3132.0,3130.7,1.2336]
[1732041261338,3.19311,3131.8,3130.7,1.2336]
[1732041262197,6.19278,3132.1,3131.1,5.0]
[1732041262342,3.0,3132.1,3131.3,0.6836]
[1732041262776,6.3856,3132.1,3131.3,0.6836]
[1732041262941,3.19297,3131.9,3131.3,0.6836]
[1732041263144,3.19277,3132.1,3131.3,0.6836]
[1732041263441,3.19286,3132.0,3131.3,0.6836]
[1732041263716,3.19295,3131.9,3131.3,0.6836]
[1732041264347,3.19305,3131.8,3131.3,0.6836]
[1732041264550,3.19295,3131.9,3131.3,0.6836]
[1732041264754,0.424037,3132.1,3131.3,0.6836]
[1732041264960,3.0,3132.2,3131.4,0.06384936]
[1732041265287,6.19265,3132.2,3131.3,0.6836]
[1732041265470,1.0781,3132.9,3131.6,1.2336]
[1732041265695,3.19228,3132.6,3131.6,1.29745037]
[1732041266204,3.19209,3132.8,3132.0,0.6836]
[1732041266489,3.1925,3132.4,3132.0,0.6836]
[1732041266642,3.19223,3132.6,3132.0,0.6836]
[1732041266847,3.19207,3132.8,3132.0,0.6836]
[1732041267150,3.19226,3132.6,3132.0,0.6836]
[1732041267548,3.19244,3132.4,3132.0,0.6836]
[1732041267754,3.19226,3132.6,3132.0,0.6836]
[1732041267951,4.19327541,3133.3,3131.5,0.6836]
[1732041267952,3.19279,3132.1,3131.5,0.6836]
[1732041268261,3.19317,3131.7,3131.5,0.6836]
[1732041268794,3.19298,3131.9,3131.5,0.6836]
[1732041269008,3.19278,3132.1,3131.5,0.6836]
[1732041269511,3.19258,3132.3,3131.6,0.04248628]
[1732041269691,3.19249,3132.4,3131.5,0.6836]
[1732041269887,3.19271,3132.2,3131.5,0.6836]
[1732041270472,3.19249,3132.4,3131.5,0.6836]
[1732041270696,3.1928,3132.1,3131.5,0.6836]
[1732041270995,3.0,3132.6,3131.5,0.6836]
[1732041271196,3.19316,3131.7,3131.5,0.6836]
[1732041271802,3.19325,3131.6,3131.5,0.6836]
[1732041271996,3.19299,3131.9,3131.5,0.6836]
[1732041272215,3.19292,3132.0,3131.5,0.6836]
[1732041272497,3.19311,3131.8,3131.5,0.6836]
[1732041273132,6.38584,3132.0,3131.5,0.6836]
[1732041273288,3.19295,3131.9,3131.5,0.6836]
[1732041273623,3.19292,3132.0,3131.5,0.6836]
[1732041273922,3.19317,3131.7,3131.5,0.6836]
[1732041274430,3.1929,3132.0,3131.5,0.6836]
[1732041274662,3.19269,3132.2,3131.5,0.6836]
[1732041274783,3.19249,3132.4,3131.5,0.6836]
[1732041274986,3.19211,3132.8,3131.9,0.6836]
[1732041275236,3.19219,3132.7,3131.9,0.6836]
[1732041275403,3.19224,3132.6,3131.9,0.6836]
[1732041275886,3.19235,3132.5,3131.9,0.6836]
[1732041276531,3.19253,3132.4,3131.9,0.6836]
[1732041277241,3.19256,3132.3,3131.9,0.6836]
[1732041277533,3.19266,3132.2,3131.9,0.6836]
[1732041277798,3.831175,3132.2,3131.9,0.6836]
[1732041278036,3.1928,3132.1,3131.9,0.6836]
[1732041278192,3.19249,3132.4,3131.9,0.6836]
[1732041278514,3.19251,3132.4,3131.9,0.6836]
[1732041278719,3.19203,3132.8,3131.9,0.6836]
[1732041278963,3.19259,3132.3,3131.9,0.6836]
[1732041279677,3.19238,3132.5,3131.9,0.6836]
[1732041280276,3.19244,3132.4,3131.9,0.6836]
[1732041280428,3.19185,3133.0,3131.9,0.6836]
[1732041280629,3.1924,3132.5,3131.9,0.6836]
[1732041280943,3.19264,3132.2,3131.9,0.6836]
[1732041281577,3.1925,3132.4,3131.9,0.6836]
[1732041282687,3.19259,3132.3,3131.9,0.6836]
[1732041282834,3.19266,3132.2,3131.9,0.6836]
[1732041283573,3.19255,3132.3,3131.9,0.6836]
[1732041284151,3.19271,3132.2,3131.9,0.6836]
[1732041284358,3.19274,3132.1,3131.9,0.6836]
[1732041284646,3.19266,3132.2,3131.9,0.6836]
[1732041285148,3.19229,3132.6,3131.9,0.6836]
[1732041285671,3.0,3132.7,3131.9,0.6836]
[1732041285878,3.0,3132.9,3131.9,0.6836]
[1732041286037,0.4298317,3133.0,3131.9,0.6836]
[1732041286232,0.08137699,3133.1,3132.0,0.55]
[1732041286434,3.1919,3133.0,3132.0,0.55]
[1732041286678,3.19162,3133.3,3132.3,0.6891]
[1732041287275,3.0,3133.2,3132.3,1.0076]
[1732041288141,6.19164,3133.2,3132.3,1.0076]
[1732041289171,3.19178,3133.1,3132.3,1.0076]
[1732041289575,6.19168,3133.2,3132.3,1.0076]
[1732041289799,3.19174,3133.1,3132.3,1.0076]
[1732041290180,6.19168,3133.2,3132.3,1.0076]
[1732041290504,1.08482411,3133.5,3132.3,1.0076]
[1732041290796,3.19155,3133.3,3132.3,1.0076]
[1732041290962,1.08482411,3133.5,3132.3,1.0076]
[1732041291166,3.19158,3133.3,3132.3,1.0076]
[1732041291467,3.19158,3133.3,3132.5,5.0]
[1732041291674,3.19144,3133.4,3132.6,0.6891]
[1732041291888,4.32515922,3133.8,3132.6,0.6891]
[1732041292086,3.19119,3133.7,3132.9,5.0]
[1732041292292,3.19119,3133.7,3133.1,0.6891]
[1732041292498,3.19096,3133.9,3133.1,0.6891]
[1732041293193,3.19091,3133.9,3133.5,0.6891]
[1732041293495,1.1124,3134.7,3133.5,0.6891]
[1732041293496,0.07811753,3134.2,3133.5,0.6891]
[1732041293697,3.19089,3134.0,3133.5,0.6891]
[1732041293943,3.19119,3133.7,3133.5,0.6891]
[1732041294222,3.19132,3133.5,3132.9,5.0]
[1732041294394,4.25075,3134.1,3132.9,5.0]
[1732041294605,3.19144,3133.4,3132.7,5.6891]
[1732041294798,3.19164,3133.2,3132.7,5.6891]
[1732041295000,3.19187,3133.0,3132.7,0.6891]
[1732041295221,0.319164,3133.1,3132.3,0.6891]
[1732041295385,3.19234,3132.5,3132.3,0.6891]
[1732041295585,6.38477,3132.5,3132.3,0.6891]
[1732041295789,3.19231,3132.6,3132.3,0.6891]
[1732041296017,3.19203,3132.8,3131.6,0.6891]
[1732041296197,3.19233,3132.5,3131.6,0.6891]
[1732041296398,3.19264,3132.3,3131.6,0.6891]
[1732041296827,3.19276,3132.1,3131.6,0.6891]
[1732041297194,3.19301,3131.9,3131.6,0.6891]
[1732041297800,3.1931,3131.8,3131.1,0.6891]
[1732041298082,3.19301,3131.9,3131.1,0.6891]
[1732041299048,3.19278,3132.1,3130.6,0.01]
[1732041299049,1.0534,3132.6,3131.6,0.6891]
[1732041299268,3.27112281,3132.7,3131.9,5.0]
[1732041299547,3.1914,3133.5,3132.0,1.2391]
[1732041299548,1.19192,3133.0,3132.0,1.2391]
[1732041299737,1.0134,3133.4,3132.0,1.2391]
[1732041300108,3.19204,3132.8,3132.0,1.2391]
[1732041300655,3.19237,3132.5,3132.0,0.6891]
[1732041300808,3.19201,3132.9,3132.0,0.6891]
[1732041301011,3.19178,3133.1,3132.0,0.6891]
[1732041301239,3.19152,3133.3,3132.1,0.55]
[1732041301431,3.19198,3132.9,3132.1,0.55]
[1732041301615,1.41474,3133.4,3132.1,0.55]
[1732041301827,3.19226,3132.6,3132.0,0.6891]
[1732041302038,0.319226,3132.6,3132.0,0.6891]
[1732041302281,3.19189,3133.0,3132.1,0.55]
[1732041302541,3.19156,3133.3,3132.3,5.0]
[1732041302707,3.19156,3133.3,3132.4,0.6891]
[1732041302909,3.19134,3133.5,3132.7,5.0]
[1732041303109,3.19119,3133.7,3132.8,0.6891]
[1732041303311,3.19135,3133.5,3132.8,0.6891]
[1732041303810,1.1145,3133.9,3132.8,0.6891]
[1732041303811,3.19123,3133.6,3132.8,0.6891]
[1732041304221,3.0,3133.5,3132.8,0.6891]
[1732041304432,3.0,3133.7,3132.8,0.6891]
[1732041304610,6.19113,3133.7,3132.8,0.6891]
[1732041304954,6.19135,3133.5,3132.8,0.6891]
[1732041305360,3.0,3133.5,3132.8,0.6891]
[1732041305876,3.0,3133.7,3132.9,0.01844823]
[1732041306093,3.19119,3133.7,3132.9,0.01844823]
[1732041306240,3.19134,3133.5,3132.8,0.6891]
[1732041306442,3.19117,3133.7,3132.8,0.6891]
[1732041306873,3.19137,3133.5,3132.8,0.6891]
[1732041307053,0.319137,3133.5,3132.8,0.6891]
[1732041307254,3.19153,3133.3,3132.8,0.6891]
[1732041307548,0.01,3132.8,3131.8,0.01844469]
[1732041307746,3.19347,3131.4,3131.1,0.6891]
[1732041307993,3.19386,3131.0,3130.7,0.6891]
[1732041308151,3.19366,3131.2,3130.7,0.6891]
[1732041308573,3.19371,3131.2,3130.7,0.6891]
[1732041308745,3.19407,3130.8,3130.7,0.6891]
[1732041308985,3.19446,3130.5,3130.0,0.6886]
[1732041309142,3.19421,3130.7,3130.0,0.6886]
[1732041309579,3.19438,3130.5,3130.0,0.6886]
[1732041310087,6.19396,3131.0,3130.0,0.6886]
[1732041310306,3.19413,3130.8,3130.0,0.6886]
[1732041310442,6.19364,3131.3,3130.0,0.6886]
[1732041310783,7.23697,3131.4,3130.0,0.6886]
[1732041310965,3.0,3131.2,3130.0,0.6886]
[1732041311187,5.16699618,3131.4,3130.0,0.6886]
[1732041311341,4.12396718,3131.4,3130.0,0.6886]
[1732041311552,4.31748718,3131.4,3130.0,0.6886]
[1732041311855,4.0435,3131.4,3130.3,5.0]
[1732041312083,1.0435,3131.4,3130.3,5.0]
[1732041313417,4.0854,3131.9,3130.5,0.6886]
[1732041313566,4.0854,3131.9,3130.6,0.55]
[1732041313768,4.57328305,3131.9,3130.5,0.6886]
[1732041313969,7.76624305,3131.9,3130.6,0.55]
[1732041314498,3.0,3131.4,3130.5,0.6886]
[1732041314700,3.19356,3131.3,3130.5,0.6886]
[1732041314875,3.0,3131.4,3130.5,0.6886]
[1732041315493,6.19341,3131.5,3130.5,0.6886]
[1732041315672,3.19352,3131.4,3130.5,0.6886]
[1732041316268,3.19358,3131.3,3130.5,0.6886]
[1732041316467,3.19352,3131.4,3130.5,0.6886]
[1732041316468,3.19367,3131.2,3130.5,0.6886]
[1732041317191,3.19393,3131.0,3130.5,0.6886]
[1732041317716,3.19393,3131.0,3130.0,0.6886]
[1732041317936,3.19408,3130.8,3130.0,0.6886]
[1732041318227,3.19393,3131.0,3130.0,0.6886]
[1732041318462,3.19397,3130.9,3130.0,0.6886]
[1732041318717,1.0349,3131.5,3130.1,5.0]
[1732041318934,3.0,3131.1,3130.2,0.55]
[1732041319279,6.19377,3131.1,3130.2,0.55]
[1732041319774,6.19376,3131.1,3130.2,0.55]
[1732041320381,3.19389,3131.0,3130.2,0.55]
[1732041320691,3.0,3131.1,3130.2,0.55]
[1732041320890,3.0,3131.3,3130.3,0.6886]
[1732041321389,3.0,3131.1,3130.3,0.6886]
[1732041321883,6.19383,3131.1,3130.3,0.6886]
[1732041322081,6.19379,3131.1,3130.3,0.6886]
[1732041322505,3.19421,3130.7,3130.3,0.6886]
[1732041322833,7.29722,3131.1,3129.7,0.6886]
[1732041322978,3.19489,3130.0,3129.7,0.6886]
[1732041323184,3.19469,3130.2,3129.7,0.6886]
[1732041323815,3.19475,3130.2,3129.7,0.6886]
[1732041324076,3.19504,3129.9,3129.2,0.6886]
[1732041324211,0.619475,3130.2,3129.2,0.6886]
[1732041324415,3.19545,3129.5,3129.2,0.6886]
[1732041324760,3.19545,3129.5,3128.8,0.6886]
[1732041324942,3.19531,3129.6,3128.8,0.6886]
[1732041325248,3.19541,3129.5,3128.8,0.6886]
[1732041325723,3.0,3130.0,3128.8,0.6886]
[1732041326051,3.0,3129.4,3128.4,0.6886]
[1732041326550,3.19629,3128.7,3128.2,0.3948]
[1732041326761,3.19648,3128.5,3128.2,0.3948]
[1732041327118,6.39259,3128.7,3128.2,0.3948]
[1732041327314,3.19629,3128.7,3128.2,0.3948]
[1732041327563,3.1965,3128.5,3128.2,0.3948]
[1732041328118,3.19624,3128.7,3128.2,0.3948]
[1732041328452,3.19585,3129.1,3128.2,0.3948]
[1732041328453,6.39055,3129.7,3128.3,5.6886]
[1732041328661,3.19501,3129.9,3128.5,0.6886]
[1732041328816,1.0556,3130.1,3128.7,5.0]
[1732041329012,4.32811383,3130.5,3128.8,0.75247836]
[1732041329259,3.19476,3130.2,3128.9,0.55]
[1732041329573,3.19456,3130.4,3129.2,0.6886]
[1732041329716,3.19458,3130.3,3129.2,0.6886]
[1732041329951,1.0556,3130.5,3129.2,0.6886]
[1732041330158,3.19451,3130.4,3129.2,0.6886]
[1732041330355,3.19507,3129.9,3129.2,0.6886]
[1732041330523,3.0,3129.8,3129.2,0.6886]
[1732041330722,3.19522,3129.7,3129.2,0.6886]
[1732041330940,3.0,3129.6,3128.6,5.0]
[1732041331161,3.0,3129.6,3128.4,1.2386]
[1732041331162,3.0,3129.5,3128.4,1.2386]
[1732041331459,6.19547,3129.5,3128.4,0.6886]
[1732041331631,3.0,3129.2,3128.4,0.6886]
[1732041331956,3.0,3129.4,3128.4,0.6886]
[1732041332720,3.0,3129.2,3128.4,0.6886]
[1732041333070,3.0,3129.4,3128.4,0.6886]
[1732041333363,1.0573,3129.8,3128.4,0.6886]
[1732041333364,3.0,3129.2,3128.4,0.6886]
[1732041333522,3.3,3129.2,3128.4,0.6886]
[1732041333712,6.19576,3129.2,3128.4,0.6886]
[1732041333918,3.19544,3129.5,3128.4,0.6886]
[1732041334241,3.0,3129.4,3128.4,0.6886]
[1732041334755,3.0,3129.6,3128.4,0.6886]
[1732041334966,4.0573,3129.8,3128.5,0.55]
[1732041335153,1.14590097,3130.2,3129.0,5.0]
[1732041335336,3.19488,3130.0,3129.1,0.6886]
[1732041336044,3.19534,3129.6,3129.1,0.6886]
[1732041336213,3.19511,3129.8,3129.1,0.6886]
[1732041336619,6.19501,3129.9,3129.1,0.6886]
[1732041337366,3.0,3129.7,3129.1,0.6886]
[1732041337863,3.0,3129.9,3129.1,0.6886]
[1732041338059,3.0,3130.1,3129.1,0.6886]
[1732041338535,3.19488,3130.0,3129.1,0.6886]
[1732041338741,3.0,3129.9,3129.1,0.6886]
[1732041339180,6.19501,3129.9,3129.1,0.6886]
[1732041339351,3.938989,3129.9,3129.1,0.6886]
[1732041339764,3.0,3130.1,3129.1,0.6886]
[1732041339990,1.0676,3130.2,3129.1,0.6886]
[1732041340179,6.19463,3130.3,3129.1,0.6886]
[1732041340496,3.0,3130.1,3129.1,0.6886]
[1732041340785,3.19421,3130.7,3129.1,0.6886]
[1732041340996,3.19439,3130.5,3129.1,0.6886]
[1732041341197,0.07785035,3130.8,3129.5,0.7023]
[1732041341426,3.19399,3130.9,3129.5,0.7023]
[1732041341750,1.0911,3131.0,3129.5,0.7023]
[1732041341993,3.19427,3130.7,3129.5,0.7023]
[1732041342287,3.513697,3130.7,3129.5,0.7023]
[1732041342497,3.19427,3130.7,3129.5,0.7023]
[1732041342696,3.19426,3130.7,3129.5,0.7023]
[1732041342864,3.19438,3130.5,3129.5,0.7023]
[1732041343062,3.0,3130.6,3129.5,0.7023]
[1732041343266,3.0,3130.4,3129.5,0.7023]
[1732041343466,3.0,3130.6,3129.5,0.7023]
[1732041343669,3.0,3130.4,3129.5,0.7023]
[1732041343953,3.1946,3130.3,3129.5,0.7023]
[1732041344205,3.0,3130.4,3129.5,0.7023]
[1732041345002,6.1945,3130.4,3129.5,0.7023]
[1732041345152,3.0,3130.2,3129.5,0.7023]
[1732041345355,3.19488,3130.0,3129.5,0.7023]
[1732041345590,3.0,3129.9,3129.3,0.7023]
[1732041346634,3.0,3129.7,3129.3,0.7023]
[1732041347131,3.319494,3129.9,3129.3,0.7023]
[1732041347298,3.0,3129.9,3129.3,0.7023]
[1732041347503,3.0,3129.7,3129.3,0.7023]
[1732041348039,3.0,3129.9,3129.3,0.7023]
[1732041348200,6.19499,3129.9,3129.3,0.7023]
[1732041348388,3.0,3129.9,3129.3,0.7023]
[1732041348701,6.19502,3129.9,3129.3,0.7023]
[1732041349022,3.0,3129.7,3129.3,0.7023]
[1732041349259,3.0,3129.7,3128.7,0.7023]
[1732041349260,3.19567,3129.3,3128.7,0.7023]
[1732041349420,3.19579,3129.2,3128.7,0.7023]
[1732041349618,3.0,3129.1,3128.7,0.7023]
[1732041350101,3.0,3129.3,3128.7,0.7023]
[1732041350309,1.0894,3130.0,3128.7,0.7023]
[1732041350511,3.0,3129.4,3128.7,0.7023]
[1732041350796,0.01,3130.2,3128.5,5.0]
[1732041350797,0.0789383,3130.4,3128.9,0.7023]
[1732041351042,1.0401,3130.5,3128.8,0.55]
[1732041351043,1.0401,3130.5,3129.2,0.7023]
[1732041351344,3.19447,3130.4,3129.2,0.7023]
[1732041351556,3.1952,3129.7,3129.2,0.7023]
[1732041351706,6.39008,3129.9,3129.2,0.7023]
[1732041352046,3.19526,3129.7,3129.2,0.7023]
[1732041352419,3.0,3129.6,3129.2,0.7023]
[1732041353119,6.19529,3129.6,3129.2,0.7023]
[1732041353705,3.19542,3129.5,3128.7,0.7023]
[1732041353919,3.0,3129.6,3128.7,0.7023]
[1732041354374,6.19534,3129.6,3128.7,0.7023]
[1732041354525,3.0,3129.6,3128.7,0.7023]
[1732041354727,6.19531,3129.6,3128.7,0.7023]
[1732041354953,3.0,3129.6,3128.7,0.7023]
[1732041355231,3.0,3129.8,3128.7,0.7023]
[1732041355650,3.0,3130.0,3128.7,0.7023]
[1732041355824,6.3897,3130.1,3129.1,0.7023]
[1732041356037,3.19488,3130.0,3129.1,0.7023]
[1732041356460,3.19515,3129.8,3129.1,0.7023]
[1732041356668,6.39033,3129.8,3129.1,0.7023]
[1732041356967,3.19515,3129.8,3129.1,0.7023]
[1732041357120,3.0,3129.7,3129.1,0.7023]
[1732041357323,3.19454,3130.4,3129.2,0.7023]
[1732041357553,3.0,3130.5,3129.2,0.7023]
[1732041357740,3.0,3130.3,3129.2,0.7023]
[1732041358370,3.19455,3130.4,3129.2,0.7023]
[1732041359270,3.19468,3130.3,3129.2,0.7023]
[1732041359571,3.0,3130.2,3129.2,0.7023]
[1732041360031,3.0,3129.8,3129.2,0.7023]
[1732041360230,3.0,3129.9,3129.2,0.7023]
[1732041360425,1.0609,3130.5,3129.2,0.7023]
[1732041360738,6.38966,3130.1,3129.2,0.7023]
[1732041361079,3.0,3130.0,3129.2,0.7023]
[1732041361253,3.19508,3129.9,3129.2,0.7023]
[1732041361744,3.0,3129.8,3129.2,0.7023]
[1732041362757,3.0,3130.0,3129.2,0.7023]
[1732041362950,1.0609,3130.5,3129.2,0.7023]
[1732041363134,3.19447,3130.4,3129.2,0.7023]
[1732041363347,3.0,3130.0,3129.2,0.7023]
[1732041363673,6.19474,3130.2,3129.2,0.7023]
[1732041364242,3.0,3130.0,3129.2,0.7023]
[1732041364768,3.19458,3130.3,3129.2,0.7023]
[1732041364980,3.0,3130.2,3129.2,0.7023]
[1732041365277,6.19468,3130.2,3129.2,0.7023]
[1732041366055,6.19451,3130.4,3129.2,0.7023]
[1732041366266,3.0,3130.3,3129.2,0.7023]
[1732041366567,6.19466,3130.3,3129.2,0.7023]
[1732041366884,6.18616435,3130.3,3129.2,0.7023]
[1732041367044,3.19432,3130.6,3129.2,0.7023]
[1732041367243,3.513862,3130.5,3129.3,0.7023]
[1732041367582,3.513862,3130.5,3129.1,5.3185]
[1732041367583,3.19363,3131.3,3129.8,0.7023]
[1732041367734,3.19335,3131.5,3130.0,0.7023]
[1732041368071,3.19356,3131.3,3130.0,0.7023]
[1732041368366,3.19379,3131.1,3130.0,0.7023]
[1732041368989,3.19358,3131.3,3130.1,0.06388872]
[1732041369251,3.0,3131.4,3130.2,0.7026]
[1732041369420,6.19352,3131.4,3130.2,0.7026]
[1732041369593,3.0,3131.4,3130.2,5.7026]
[1732041369761,3.0,3131.3,3130.3,0.7026]
[1732041370009,3.38913787,3131.3,3130.3,0.7026]
[1732041370296,3.19378,3131.1,3130.3,0.7026]
[1732041370498,0.07813222,3131.5,3130.3,0.7026]
[1732041370499,3.19434,3130.6,3130.3,0.7026]
[1732041370705,0.319434,3130.5,3129.8,0.7026]
[1732041370857,3.19434,3130.6,3129.8,0.7026]
[1732041371060,3.19417,3130.7,3129.8,0.7026]
[1732041371370,3.19407,3130.8,3129.8,0.7026]
[1732041371975,4.23895,3131.0,3129.8,0.7026]
[1732041372177,3.19395,3131.0,3129.8,0.7026]
[1732041372365,3.19408,3130.8,3129.8,0.7026]
[1732041372712,3.19392,3131.0,3129.8,0.7026]
[1732041372998,3.19405,3130.9,3129.8,0.7026]
[1732041373200,3.1941,3130.8,3129.8,0.7026]
[1732041373397,3.19392,3131.0,3129.8,0.7026]
[1732041373599,6.38829,3130.8,3129.8,0.7026]
[1732041373903,3.55,3131.0,3129.8,0.7026]
[1732041374125,3.19479,3130.1,3129.8,0.7026]
[1732041374261,3.19451,3130.4,3129.8,0.7026]
[1732041374461,3.19431,3130.6,3129.8,0.7026]
[1732041374824,3.19412,3130.8,3129.8,0.7026]
[1732041375361,6.38826,3130.8,3129.8,0.7026]
[1732041375571,3.19434,3130.6,3129.8,0.7026]
[1732041375900,6.38826,3130.8,3129.8,0.7026]
[1732041376199,3.19415,3130.8,3129.8,0.7026]
[1732041376611,3.19423,3130.7,3129.8,0.7026]
[1732041376818,3.19408,3130.8,3129.8,0.7026]
[1732041377107,3.19423,3130.7,3129.8,0.7026]
[1732041377263,3.19434,3130.6,3129.8,0.7026]
[1732041378071,3.19444,3130.5,3129.8,0.7026]
[1732041378300,3.19467,3130.3,3129.8,0.7026]
[1732041378720,3.19475,3130.2,3129.8,0.7026]
[1732041379005,3.19479,3130.1,3129.8,0.7026]
[1732041379163,3.1947,3130.2,3129.8,0.7026]
[1732041379807,3.19442,3130.5,3129.8,0.7026]
[1732041380011,3.19422,3130.7,3129.8,0.7026]
[1732041380301,3.19422,3130.7,3129.9,0.7026]
[1732041380509,3.19428,3130.6,3129.9,1.11733689]
[1732041381591,3.19416,3130.8,3129.9,1.11733689]
[1732041381800,3.19432,3130.6,3130.0,0.7026]
[1732041382398,3.19456,3130.4,3130.0,0.7026]
[1732041382608,3.19429,3130.6,3130.0,0.7026]
[1732041382911,3.1943,3130.6,3130.0,0.7026]
[1732041383213,0.0811989,3131.1,3130.0,0.7026]
[1732041383385,3.19478,3130.1,3130.0,0.7026]
[1732041383586,3.19507,3129.9,3129.5,0.7026]
[1732041383976,3.19486,3130.1,3129.5,0.7026]
[1732041384250,6.38974,3130.1,3129.5,0.7026]
[1732041384387,3.19496,3130.0,3129.5,1.10351392]
[1732041384597,3.19514,3129.8,3129.5,0.7026]
[1732041385414,3.19529,3129.6,3129.5,0.7026]
[1732041385589,3.19514,3129.8,3129.5,0.7026]
[1732041385773,3.1952,3129.7,3129.5,0.7026]
[1732041387826,3.19529,3129.6,3129.5,0.7026]
[1732041388174,3.19515,3129.8,3129.5,0.7026]
[1732041388719,3.19529,3129.6,3129.5,0.7026]
[1732041388914,3.19542,3129.5,3129.0,0.7026]
[1732041389422,3.19519,3129.7,3129.0,0.7026]
[1732041389720,3.19535,3129.6,3129.0,0.7026]
[1732041390078,3.19576,3129.2,3129.0,0.7026]
[1732041390448,3.1958,3129.1,3129.0,0.7026]
[1732041390713,3.1957,3129.2,3129.0,0.7026]
[1732041391324,3.1958,3129.1,3129.0,0.7026]
[1732041391632,3.1957,3129.2,3129.0,0.7026]
[1732041392129,3.1958,3129.1,3129.0,0.7026]
[1732041392277,3.19607,3128.9,3128.7,0.7026]
[1732041392479,4.36840775,3129.8,3128.4,5.0]
[1732041392480,3.1963,3128.7,3128.4,5.0]
[1732041392677,1.17327775,3129.8,3128.4,5.0]
[1732041392985,3.1962,3128.8,3128.4,5.0]
[1732041393176,1.17327775,3129.8,3128.4,5.0]
[1732041393381,1.0779,3130.7,3129.7,5.0]
[1732041393702,3.19422,3130.7,3129.7,5.0]
[1732041393902,3.19447,3130.5,3129.7,5.0]
[1732041394271,3.19407,3130.8,3129.8,0.7026]
[1732041394471,3.19418,3130.7,3129.8,0.7026]
[1732041394699,3.19429,3130.6,3129.9,0.43640356]
[1732041394981,3.19418,3130.7,3129.9,0.43640356]
[1732041395840,3.19418,3130.7,3129.8,0.7026]
[1732041396440,3.19418,3130.7,3129.9,0.43640356]
[1732041396801,3.19402,3130.9,3129.9,0.43640356]
[1732041397001,3.0,3131.1,3130.0,0.7026]
[1732041397229,3.19416,3130.8,3130.1,0.43640356]
[1732041398101,3.19417,3130.7,3130.1,0.43640356]
[1732041398541,3.19399,3130.9,3130.1,0.43640356]
[1732041398715,3.19407,3130.8,3130.1,0.43640356]
[1732041399455,1.0779,3131.4,3130.2,5.06388915]
[1732041399601,3.19353,3131.4,3130.3,0.7033]
[1732041399859,4.26798,3131.8,3130.7,5.0]
[1732041400047,3.19308,3131.8,3130.9,0.7033]
[1732041400897,3.19245,3132.4,3130.7,5.0]
[1732041400898,1.0749,3132.5,3131.3,0.7033]
[1732041401049,3.19281,3132.1,3131.3,0.7033]
[1732041401553,6.38565,3132.1,3131.3,0.7033]
[1732041401752,3.19244,3132.4,3131.3,0.7033]
[1732041401950,1.0749,3132.5,3131.3,0.7033]
[1732041401951,3.1929,3132.0,3131.3,0.7033]
[1732041402255,3.19267,3132.2,3131.3,5.7033]
[1732041402431,3.19245,3132.4,3131.3,5.7033]
[1732041402642,3.19226,3132.6,3131.4,0.7033]
[1732041402959,3.19261,3132.3,3131.4,0.7033]